bitfinex-derivatives/quotes_BNBF0:USTF0_20230830
["timestamp","ask_amount","ask_price","bid_price","bid_amount"]
[1693403047117,0.07196206,224.31,224.03,0.89161224]
[1693403047318,0.07196206,224.31,224.04,0.89161224]
[1693403047618,0.07196206,224.32,224.05,0.81950964]
[1693403049018,0.07196206,224.31,224.05,0.81950964]
[1693403049718,0.07196206,224.3,224.05,0.81950964]
[1693403049919,0.07196206,224.3,224.03,0.81950964]
[1693403050218,0.07196206,224.3,224.04,0.81950964]
[1693403050418,0.07196206,224.31,224.04,0.81950964]
[1693403051215,0.07196206,224.31,224.04,0.89161224]
[1693403051417,0.07196206,224.31,224.05,0.81950964]
[1693403051618,0.07196206,224.32,224.05,0.81950964]
[1693403051818,0.07196206,224.31,224.05,0.81950964]
[1693403052719,0.07196206,224.3,224.05,0.81950964]
[1693403052914,0.07196206,224.3,224.04,0.81950964]
[1693403053120,0.07196206,224.3,224.05,0.81950964]
[1693403053321,0.07196206,224.3,224.06,0.81950964]
[1693403053513,0.07196206,224.3,224.03,0.89161224]
[1693403053717,0.07196206,224.3,224.04,0.81950964]
[1693403055820,0.07196206,224.31,224.04,0.81950964]
[1693403056216,0.07196206,224.3,224.04,0.81950964]
[1693403059417,0.07196206,224.29,224.04,0.81950964]
[1693403059620,0.07196206,224.3,224.04,0.81950964]
[1693403060224,0.07196206,224.29,224.04,0.81950964]
[1693403061324,0.07196206,224.29,224.04,0.89161224]
[1693403061519,0.07196206,224.29,224.05,0.81950964]
[1693403062321,0.07196206,224.29,224.05,0.89161224]
[1693403062521,0.07196206,224.29,224.06,0.81950964]
[1693403062921,0.07196206,224.28,224.06,0.81950964]
[1693403063125,0.07196206,224.28,224.05,0.81950964]
[1693403063321,0.07196206,224.28,224.06,0.81950964]
[1693403063526,0.07196206,224.28,224.04,0.0721026]
[1693403063728,0.07196206,224.27,224.05,0.8195751]
[1693403063923,0.07196206,224.27,224.03,0.0721026]
[1693403064124,0.07196206,224.27,224.04,0.81957501]
[1693403069329,0.07196206,224.27,224.03,0.81957501]
[1693403069525,0.07196206,224.27,224.04,0.81957501]
[1693403069726,0.07196206,224.27,224.03,0.81957501]
[1693403069931,0.07196206,224.27,224.04,0.81957501]
[1693403070124,0.07196206,224.27,224.03,0.81957501]
[1693403071531,0.07196206,224.28,224.03,0.81957501]
[1693403071731,0.07196206,224.27,224.03,0.81957501]
[1693403072031,0.07196206,224.28,224.03,0.81957501]
[1693403072932,0.07196206,224.27,224.03,0.81957501]
[1693403073532,0.07196206,224.28,224.03,0.81957501]
[1693403073933,0.07196206,224.27,224.03,0.81957501]
[1693403074237,0.07196206,224.23,223.98,0.0721026]
[1693403074431,0.07196206,224.24,223.99,0.81978142]
[1693403074738,0.07196206,224.23,224.0,0.81978142]
[1693403074930,0.07196206,224.23,223.97,0.81978142]
[1693403075132,0.07196206,224.24,223.98,0.81978612]
[1693403075332,0.07196206,224.24,223.96,0.0721026]
[1693403075333,0.07196206,224.24,223.97,0.81978612]
[1693403075533,0.07196206,224.24,223.99,0.81978612]
[1693403075729,0.07196206,224.25,224.0,0.81978612]
[1693403075933,0.07196206,224.25,223.96,0.81978612]
[1693403076136,0.07196206,224.25,223.97,0.81978555]
[1693403076337,0.07196206,224.25,223.96,0.81978555]
[1693403077433,0.07196206,224.26,223.97,0.81978555]
[1693403077632,0.07196206,224.26,223.98,0.81978555]
[1693403077838,0.07196206,224.26,223.95,0.81978555]
[1693403078034,0.07196206,224.26,223.96,0.81978555]
[1693403078332,0.07196206,224.26,223.97,0.81978555]
[1693403078536,0.07196206,224.26,223.94,0.81978555]
[1693403078737,0.07196206,224.26,223.95,0.81978555]
[1693403078930,0.07196206,224.26,223.96,0.81978555]
[1693403079133,0.07196206,224.26,223.94,0.81978555]
[1693403079337,0.07196206,224.27,223.95,0.81978555]
[1693403079536,0.07196206,224.27,223.94,0.81978555]
[1693403079730,0.07196206,224.27,223.95,0.81978555]
[1693403079934,0.07196206,224.26,223.94,0.81978555]
[1693403080134,0.07196206,224.26,223.95,0.81978555]
[1693403080437,0.07196206,224.26,223.96,0.81978555]
[1693403080637,0.07196206,224.26,223.92,0.81978555]
[1693403080838,0.07196206,224.26,223.93,0.81978555]
[1693403081433,0.07196206,224.26,223.92,0.81978555]
[1693403081638,0.07196206,224.26,223.93,0.81978555]
[1693403081936,0.07196206,224.26,223.94,0.81978555]
[1693403082136,0.07196206,224.26,223.92,0.81978555]
[1693403082331,0.07196206,224.26,223.91,0.0721026]
[1693403082332,0.07196206,224.26,223.93,0.81978555]
[1693403082637,0.07196206,224.26,223.94,0.81978555]
[1693403082839,0.07196206,224.26,223.91,0.81978555]
[1693403083539,0.07196206,224.27,223.91,0.81978555]
[1693403084943,0.07196206,224.26,223.91,0.81978555]
[1693403085441,0.07196206,224.27,223.91,0.81978555]
[1693403085640,0.07196206,224.26,223.9,0.81978555]
[1693403085835,0.07196206,224.27,223.91,0.81978555]
[1693403086034,0.07196206,224.27,223.9,0.81978555]
[1693403086233,0.07196206,224.27,223.91,0.81978555]
[1693403086436,0.07196206,224.27,223.9,0.81978555]
[1693403086640,0.07196206,224.27,223.91,0.81978555]
[1693403086839,0.07196206,224.27,223.9,0.81978555]
[1693403087140,0.07196206,224.27,223.91,0.81978555]
[1693403087339,0.07196206,224.27,223.9,0.81978555]
[1693403087535,0.07196206,224.27,223.91,0.81978555]
[1693403087734,0.07196206,224.27,223.9,0.81978555]
[1693403087935,0.07196206,224.27,223.91,0.81978555]
[1693403088137,0.07196206,224.27,223.9,0.81978555]
[1693403088338,0.07196206,224.27,223.91,0.81978555]
[1693403088537,0.07196206,224.27,223.9,0.81978555]
[1693403088739,0.07196206,224.27,223.91,0.81978555]
[1693403089041,0.07196206,224.27,223.92,0.81978555]
[1693403089239,0.07196206,224.27,223.9,0.81978555]
[1693403089540,0.07196206,224.27,223.91,0.81978555]
[1693403089736,0.07196206,224.27,223.9,0.81978555]
[1693403089934,0.07196206,224.27,223.91,0.81978555]
[1693403090134,0.07196206,224.27,223.89,0.0721026]
[1693403090135,0.07196206,224.27,223.9,0.81978555]
[1693403090334,0.07196206,224.27,223.91,0.81978555]
[1693403090533,0.07196206,224.27,223.89,0.0721026]
[1693403090534,0.07196206,224.27,223.92,0.81978555]
[1693403090739,0.07196206,224.27,223.93,0.81978555]
[1693403090940,0.07196206,224.27,223.94,0.81978555]
[1693403091239,0.07196206,224.27,223.95,0.81978555]
[1693403091440,0.07196206,224.28,223.96,0.81978555]
[1693403091636,0.14392412,224.31,223.97,0.81978555]
[1693403091637,0.07196206,224.29,223.97,0.81978555]
[1693403091838,0.07196206,224.29,223.92,0.81978555]
[1693403092040,0.07196206,224.3,223.93,0.81978555]
[1693403092239,0.07196206,224.29,223.92,0.89188815]
[1693403092437,0.07196206,224.29,223.93,0.81978555]
[1693403092638,0.07196206,224.29,223.92,0.81978555]
[1693403092837,0.07196206,224.29,223.93,0.81978555]
[1693403094246,0.07196206,224.28,223.93,0.81978555]
[1693403094447,0.07196206,224.28,223.92,0.81978555]
[1693403094648,0.07196206,224.28,223.93,0.81978555]
[1693403094849,0.07196206,224.28,223.92,0.81978555]
[1693403095241,0.07196206,224.28,223.92,0.89188815]
[1693403095445,0.07196206,224.28,223.93,0.81978555]
[1693403095945,0.07196206,224.28,223.94,0.81978555]
[1693403096141,0.07196206,224.28,223.92,0.81978555]
[1693403096344,0.07196206,224.28,223.93,0.81978555]
[1693403096843,0.07196206,224.27,223.93,0.81978555]
[1693403097049,0.07196206,224.27,223.92,0.81978555]
[1693403097243,0.07196206,224.27,223.91,0.0721026]
[1693403097244,0.07196206,224.26,223.93,0.81978555]
[1693403097443,0.07196206,224.26,223.91,0.81978555]
[1693403097649,0.07196206,224.26,223.92,0.81978555]
[1693403097849,0.07196206,224.25,223.91,0.81978555]
[1693403098043,0.07196206,224.25,223.92,0.81978555]
[1693403098247,0.07196206,224.25,223.91,0.81978555]
[1693403098449,0.07196206,224.25,223.92,0.81978555]
[1693403098648,0.07196206,224.25,223.91,0.81978555]
[1693403098943,0.07196206,224.25,223.92,0.81978555]
[1693403099150,0.07196206,224.25,223.91,0.81978555]
[1693403099344,0.07196206,224.25,223.92,0.81978555]
[1693403099649,0.07196206,224.25,223.93,0.81978555]
[1693403099850,0.07196206,224.25,223.91,0.81978555]
[1693403100149,0.07196206,224.25,223.92,0.81978555]
[1693403100350,0.07196206,224.25,223.91,0.89188815]
[1693403100555,0.07196206,224.25,223.92,0.81978555]
[1693403100851,0.07196206,224.24,223.93,0.81978555]
[1693403101052,0.07196206,224.24,223.91,0.81978555]
[1693403101251,0.07196206,224.24,223.92,0.81978555]
[1693403101444,0.07196206,224.24,223.91,0.81978555]
[1693403101646,0.07196206,224.24,223.92,0.81978555]
[1693403101953,0.07196206,224.24,223.93,0.81978555]
[1693403102154,0.07196206,224.24,223.91,0.81978555]
[1693403102354,0.07196206,224.24,223.92,0.81978555]
[1693403102554,0.07196206,224.24,223.91,0.81978555]
[1693403102849,0.07196206,224.24,223.92,0.81978555]
[1693403103052,0.07196206,224.24,223.9,0.0721026]
[1693403103053,0.07196206,224.24,223.91,0.81978555]
[1693403103254,0.07196206,224.24,223.92,0.81978555]
[1693403104352,0.07196206,224.23,223.92,0.81978555]
[1693403104554,0.07196206,224.24,223.92,0.81978555]
[1693403105451,0.07196206,224.23,223.92,0.89188815]
[1693403105651,0.07196206,224.23,223.93,0.81978555]
[1693403105954,0.07196206,224.23,223.94,0.81978555]
[1693403106153,0.07196206,224.22,223.92,0.81978555]
[1693403106455,0.07196206,224.17,223.87,0.0721026]
[1693403106654,0.07196206,224.17,223.88,0.82008227]
[1693403107254,0.07196206,224.16,223.88,0.89218487]
[1693403107556,0.07196206,224.17,223.89,0.82008227]
[1693403107751,0.07196206,224.18,223.88,0.82008227]
[1693403107952,0.07196206,224.18,223.89,0.82008227]
[1693403108150,0.07196206,224.18,223.88,0.82008227]
[1693403108350,0.07196206,224.17,223.89,0.82008227]
[1693403108950,0.07196206,224.17,223.89,0.89218487]
[1693403109250,0.07196206,224.18,223.9,0.82008227]
[1693403109450,0.07196206,224.18,223.9,0.89218487]
[1693403109657,0.07196206,224.23,223.94,0.0721026]
[1693403109851,0.07196206,224.23,223.95,0.82008227]
[1693403111453,0.07196206,224.24,223.95,0.89218487]
[1693403111656,0.07196206,224.24,223.96,0.82008227]
[1693403111853,0.07196206,224.24,223.96,0.89218487]
[1693403112060,0.07196206,224.24,223.97,0.82008227]
[1693403112358,0.07196206,224.25,223.97,0.82008227]
[1693403112859,0.07196206,224.29,224.0,0.0721026]
[1693403113153,0.07196206,224.29,224.01,0.82008227]
[1693403113552,0.07196206,224.29,224.0,0.82008227]
[1693403113753,0.07196206,224.3,224.01,0.82008227]
[1693403114058,0.07196206,224.3,224.02,0.82008227]
[1693403114359,0.07196206,224.31,224.03,0.82008227]
[1693403114553,0.07196206,224.31,224.04,0.82008227]
[1693403114758,0.07196206,224.31,223.99,0.82008227]
[1693403114958,0.07196206,224.31,224.0,0.82008227]
[1693403115159,0.07196206,224.31,223.99,0.89218487]
[1693403115359,2.39873541,224.45,223.75,0.961368]
[1693403115360,0.07196206,224.33,224.0,0.82008227]
[1693403115555,0.07196206,224.33,223.99,0.89218487]
[1693403115761,0.07196206,224.33,224.0,0.82008227]
[1693403116556,0.07196206,224.32,223.99,0.82008227]
[1693403116760,0.07196206,224.32,224.0,0.82008227]
[1693403117062,0.07196206,224.32,224.01,0.82008227]
[1693403117261,0.07196206,224.32,224.02,0.82008227]
[1693403117563,0.07196206,224.33,224.03,0.82008227]
[1693403117763,0.07196206,224.33,223.98,0.82008227]
[1693403117963,0.07196206,224.32,223.99,0.82008227]
[1693403118161,0.07196206,224.32,223.98,0.82008227]
[1693403118361,0.07196206,224.33,223.99,0.82008227]
[1693403118561,0.07196206,224.33,223.97,0.82008227]
[1693403118862,0.07196206,224.33,223.98,0.82008227]
[1693403119062,0.07196206,224.34,223.98,0.82008227]
[1693403119862,0.07196206,224.35,223.98,0.89218487]
[1693403120060,0.07196206,224.35,223.99,0.82008227]
[1693403120262,0.07196206,224.36,223.99,0.82008227]
[1693403120475,0.07196206,224.36,223.98,0.82008227]
[1693403120664,0.07196206,224.36,223.99,0.82008227]
[1693403120866,0.07196206,224.36,223.98,0.82008227]
[1693403121065,0.07196206,224.36,224.0,0.82008227]
[1693403121261,0.07196206,224.36,224.01,0.82008227]
[1693403121469,0.07196206,224.36,224.02,0.82008227]
[1693403121766,0.07196206,224.36,223.98,0.0721026]
[1693403121767,0.07196206,224.36,224.03,0.82008227]
[1693403121964,0.07196206,224.36,224.04,0.82008227]
[1693403122160,0.07196206,224.36,224.05,0.82008227]
[1693403122364,0.07196206,224.36,224.06,0.82008227]
[1693403122564,0.07196206,224.36,223.98,0.0721026]
[1693403122565,0.07196206,224.36,224.07,0.82008227]
[1693403122765,0.07196206,224.36,224.08,0.82008227]
[1693403122964,0.07196206,224.36,223.98,0.0721026]
[1693403123165,0.07196206,224.36,223.99,0.81950679]
[1693403126466,0.07196206,224.41,223.99,0.81950679]
[1693403126669,0.07196206,224.41,223.98,0.81950679]
[1693403126869,0.07196206,224.41,223.99,0.81950679]
[1693403127072,0.07196206,224.41,223.98,0.81950679]
[1693403127270,0.07196206,224.41,223.99,0.81950679]
[1693403127472,0.07196206,224.41,223.98,0.81950679]
[1693403127665,0.07196206,224.41,223.99,0.81950679]
[1693403127869,0.07196206,224.41,223.98,0.81950679]
[1693403128069,0.07196206,224.41,223.99,0.81950679]
[1693403128266,0.07196206,224.41,224.0,0.81950679]
[1693403128566,0.07196206,224.42,224.01,0.81950679]
[1693403128771,0.07196206,224.42,224.02,0.81950679]
[1693403128969,0.07196206,224.48,224.02,0.0721026]
[1693403129272,0.07196206,224.48,224.03,0.81950679]
[1693403129573,0.07196206,224.5,224.03,0.81950679]
[1693403129773,0.89080742,224.49,224.04,0.81950679]
[1693403129973,0.81884536,224.48,224.01,0.81950679]
[1693403130973,0.81884536,224.49,224.01,0.81950679]
[1693403131169,0.07196206,224.5,224.01,0.81950679]
[1693403131475,0.81879457,224.49,224.01,0.81950679]
[1693403131673,0.81879457,224.5,224.0,0.81950679]
[1693403131874,0.81879726,224.49,224.01,0.81950679]
[1693403132070,0.81879726,224.5,224.0,0.81950679]
[1693403132272,0.81879703,224.49,224.01,0.81950679]
[1693403132573,0.81879703,224.48,224.02,0.81950679]
[1693403132773,0.81879703,224.5,223.98,0.81950679]
[1693403133075,0.81876921,224.49,223.99,0.81950679]
[1693403133273,0.81876921,224.5,223.98,0.81950679]
[1693403133466,0.81876921,224.49,223.99,0.81950679]
[1693403133670,0.81876921,224.48,224.0,0.81950679]
[1693403133872,0.07196206,224.53,224.01,0.81950679]
[1693403134072,0.81882515,224.52,224.02,0.81950679]
[1693403134272,0.81882515,224.52,223.98,0.81950679]
[1693403134569,0.81882515,224.52,223.99,0.81950679]
[1693403134971,0.81882515,224.53,223.99,0.81950679]
[1693403135171,0.81882515,224.52,223.99,0.81950679]
[1693403135570,0.81882515,224.51,223.99,0.81950679]
[1693403135774,0.81882515,224.5,223.99,0.81950679]
[1693403135975,0.81882515,224.54,223.99,0.81950679]
[1693403136169,0.81886194,224.53,223.99,0.81950679]
[1693403136371,0.81886194,224.52,223.99,0.81950679]
[1693403136574,0.81886194,224.54,223.99,0.81950679]
[1693403136877,0.81886194,224.53,223.99,0.81950679]
[1693403137076,0.81886194,224.54,223.99,0.81950679]
[1693403137279,0.81886194,224.53,223.99,0.81950679]
[1693403137578,0.81886194,224.52,223.99,0.81950679]
[1693403137770,0.81886194,224.51,223.99,0.81950679]
[1693403137970,0.81886194,224.5,223.99,0.81950679]
[1693403138171,0.07196206,224.55,224.0,0.81950679]
[1693403138374,0.81884096,224.54,224.01,0.81950679]
[1693403138572,0.81884096,224.54,224.02,0.81950679]
[1693403138877,0.81884096,224.53,224.03,0.81950679]
[1693403139079,0.81884096,224.55,223.99,0.81950679]
[1693403139272,0.81884096,224.54,224.0,0.81950679]
[1693403139477,0.81884096,224.55,223.99,0.81950679]
[1693403139776,0.81884096,224.54,224.0,0.81950679]
[1693403140080,0.81884096,224.53,224.01,0.81950679]
[1693403140279,0.81884096,224.55,223.99,0.81950679]
[1693403140481,0.81884096,224.54,224.0,0.81950679]
[1693403140682,0.81884096,224.54,223.99,0.81950679]
[1693403141479,0.81884096,224.54,223.98,0.81950679]
[1693403141673,0.81884096,224.54,223.99,0.81950679]
[1693403142377,0.81884096,224.53,224.0,0.0721026]
[1693403142573,0.81884096,224.53,224.01,0.81950679]
[1693403144086,0.81884096,224.53,224.0,0.81950679]
[1693403144286,0.81884096,224.53,224.01,0.81950679]
[1693403144486,0.07196206,224.52,224.01,0.0721026]
[1693403144686,0.07196206,224.52,224.02,0.81950679]
[1693403144986,0.81884096,224.51,224.02,0.81950679]
[1693403145388,0.89080302,224.51,224.02,0.89160939]
[1693403145686,0.81884096,224.5,224.03,0.81950679]
[1693403146388,0.89080302,224.5,224.03,0.89160939]
[1693403146587,0.07196206,224.5,224.04,0.81950679]
[1693403146883,0.07196206,224.5,224.04,0.89160939]
[1693403147090,0.07196206,224.5,224.05,0.81950679]
[1693403147790,0.07196206,224.49,224.05,0.81950679]
[1693403147986,0.07196206,224.5,224.04,0.81950679]
[1693403148183,0.07196206,224.49,224.05,0.81950679]
[1693403148488,0.07196206,224.49,224.06,0.81950679]
[1693403148689,0.07196206,224.49,224.07,0.81950679]
[1693403148890,0.07196206,224.49,224.08,0.81950679]
[1693403149089,0.07196206,224.49,224.09,0.81950679]
[1693403149286,0.07196206,224.48,224.05,0.81950679]
[1693403149486,0.07196206,224.48,224.06,0.81950679]
[1693403149688,0.07196206,224.48,224.05,0.81950679]
[1693403149887,0.07196206,224.48,224.06,0.81950679]
[1693403150091,0.07196206,224.48,224.05,0.81950679]
[1693403150287,0.07196206,224.47,224.05,0.81950679]
[1693403151391,0.07196206,224.46,224.05,0.81950679]
[1693403151690,0.07196206,224.46,224.03,0.0721026]
[1693403151691,0.07196206,224.46,224.04,0.81950679]
[1693403151891,0.07196206,224.46,224.05,0.81950679]
[1693403152092,0.07196206,224.46,224.03,0.0721026]
[1693403152093,0.07196206,224.46,224.06,0.81950679]
[1693403152292,0.07196206,224.45,224.04,0.89160939]
[1693403152492,0.07196206,224.45,224.05,0.81950679]
[1693403152691,0.07196206,224.45,224.04,0.89160939]
[1693403152992,0.07196206,224.45,224.05,0.81950679]
[1693403153289,0.07196206,224.45,224.05,0.89160939]
[1693403153493,0.07196206,224.43,224.06,0.81950679]
[1693403153694,0.07196206,224.43,224.05,0.89160939]
[1693403153890,0.07196206,224.43,224.06,0.81950679]
[1693403154597,0.07196206,224.44,224.06,0.81950679]
[1693403155086,0.07196206,224.44,224.06,0.89160939]
[1693403155291,0.07196206,224.44,224.07,0.89160939]
[1693403155491,0.07196206,224.44,224.08,0.81950679]
[1693403156696,0.07196206,224.44,224.08,0.89160939]
[1693403156891,0.07196206,224.44,224.09,0.81950679]
[1693403158897,0.07196206,224.43,224.09,0.81950679]
[1693403159297,0.07196206,224.42,224.09,0.89160939]
[1693403159597,0.07196206,224.42,224.1,0.81950679]
[1693403160398,0.07196206,224.41,224.1,0.89160939]
[1693403160698,0.07196206,224.41,224.11,0.81950679]
[1693403161098,0.07196206,224.4,224.11,0.81950679]
[1693403161293,0.07196206,224.38,224.1,0.89160939]
[1693403161497,0.07196206,224.38,224.11,0.81950679]
[1693403163497,0.07196206,224.36,224.12,0.0721026]
[1693403163694,0.07196206,224.36,224.13,0.81950679]
[1693403164200,0.07196206,224.37,224.13,0.81950679]
[1693403164502,0.07196206,224.36,224.13,0.81950679]
[1693403165000,0.07196206,224.36,223.88,0.961368]
[1693403165001,0.07196206,224.32,224.07,0.0721026]
[1693403165197,0.07196206,224.32,224.08,0.8194552]
[1693403166103,0.07196206,224.33,224.08,0.8194552]
[1693403166298,0.07196206,224.33,224.06,0.8194552]
[1693403166498,0.07196206,224.33,224.07,0.8194552]
[1693403166698,0.07196206,224.33,224.08,0.8194552]
[1693403166902,0.07196206,224.33,224.09,0.8194552]
[1693403167099,0.07196206,224.34,224.1,0.8194552]
[1693403167295,0.07196206,224.34,224.05,0.0721026]
[1693403167498,0.07196206,224.34,224.06,0.81944222]
[1693403167901,0.07196206,224.35,224.06,0.81944222]
[1693403168200,0.07196206,224.35,224.07,0.81944222]
[1693403168401,0.07196206,224.35,224.05,0.81944222]
[1693403168595,0.07196206,224.35,224.06,0.81944222]
[1693403168800,0.07196206,224.35,224.07,0.81944222]
[1693403169001,0.07196206,224.35,224.08,0.81944222]
[1693403169197,0.07196206,224.35,224.09,0.81944222]
[1693403169396,0.07196206,224.35,224.02,0.0721026]
[1693403169604,0.07196206,224.35,224.03,0.81946431]
[1693403170703,0.07196206,224.36,224.03,0.81946431]
[1693403171197,0.07196206,224.35,224.03,0.81946431]
[1693403171398,0.07196206,224.34,224.04,0.81946431]
[1693403171706,0.07196206,224.35,224.05,0.81946431]
[1693403172004,0.07196206,224.35,224.06,0.81946431]
[1693403172303,0.07196206,224.35,224.07,0.81946431]
[1693403172500,0.07196206,224.36,224.01,0.81946431]
[1693403172704,0.07196206,224.35,224.01,0.81946431]
[1693403173806,0.07196206,224.36,224.02,0.81946431]
[1693403174005,0.07196206,224.36,224.03,0.81946431]
[1693403174206,0.07196206,224.36,224.0,0.81946431]
[1693403174506,0.07196206,224.36,224.01,0.81946431]
[1693403174706,0.07196206,224.37,224.02,0.81946431]
[1693403175006,0.07196206,224.37,224.03,0.81946431]
[1693403175204,0.07196206,224.37,224.0,0.81946431]
[1693403175404,0.07196206,224.37,224.01,0.81946431]
[1693403175705,0.07196206,224.37,224.02,0.81946431]
[1693403175899,0.07196206,224.37,224.03,0.81946431]
[1693403176102,0.07196206,224.38,224.0,0.81946431]
[1693403176304,0.07196206,224.38,224.01,0.81946431]
[1693403176507,0.07196206,224.38,224.0,0.81946431]
[1693403176801,0.07196206,224.38,224.01,0.81946431]
[1693403177008,0.07196206,224.38,224.02,0.81946431]
[1693403177308,0.07196206,224.38,224.03,0.81946431]
[1693403177604,0.07196206,224.38,224.0,0.0721026]
[1693403177605,0.07196206,224.38,224.04,0.81946431]
[1693403177906,0.07196206,224.39,224.05,0.81946431]
[1693403178102,0.07196206,224.39,224.01,0.81946431]
[1693403178300,0.07196206,224.39,224.02,0.81946431]
[1693403178506,0.07196206,224.39,224.03,0.81946431]
[1693403178703,0.07196206,224.39,224.01,0.81946431]
[1693403178905,0.07196206,224.39,224.02,0.81946431]
[1693403179107,0.07196206,224.39,224.03,0.81946431]
[1693403179306,0.07196206,224.38,224.01,0.81946431]
[1693403179508,0.07196206,224.38,224.02,0.81946431]
[1693403179708,0.07196206,224.38,224.01,0.81946431]
[1693403179907,0.07196206,224.38,224.02,0.81946431]
[1693403180106,0.07196206,224.38,224.0,0.81946431]
[1693403180507,0.07196206,224.37,224.0,0.81946431]
[1693403180909,0.07196206,224.37,223.99,0.81946431]
[1693403181105,0.07196206,224.37,224.0,0.81946431]
[1693403181412,0.07196206,224.36,224.01,0.81946431]
[1693403181614,0.07196206,224.36,223.99,0.81946431]
[1693403183914,0.07196206,224.35,223.99,0.81946431]
[1693403184107,0.07196206,224.35,223.98,0.81946431]
[1693403185813,0.07196206,224.36,223.98,0.89156691]
[1693403186013,0.07196206,224.36,223.99,0.81946431]
[1693403186210,0.07196206,224.36,224.0,0.81946431]
[1693403186409,0.07196206,224.35,223.98,0.89156691]
[1693403186613,0.07196206,224.35,223.99,0.81946431]
[1693403187415,0.07196206,224.35,223.98,0.81946431]
[1693403187615,0.07196206,224.35,223.99,0.81946431]
[1693403187818,0.07196206,224.35,224.0,0.81946431]
[1693403188012,0.07196206,224.34,224.01,0.81946431]
[1693403188315,0.07196206,224.35,224.02,0.81946431]
[1693403188509,0.07196206,224.35,223.98,0.81946431]
[1693403188713,0.07196206,224.35,223.99,0.81946431]
[1693403188912,0.07196206,224.35,224.0,0.81946431]
[1693403189114,0.07196206,224.35,224.01,0.81946431]
[1693403189311,0.07196206,224.35,224.02,0.81946431]
[1693403189514,0.07196206,224.35,224.03,0.81946431]
[1693403189717,0.07196206,224.35,223.98,0.89156691]
[1693403189919,0.07196206,224.36,223.99,0.81946431]
[1693403190317,0.07196206,224.35,223.99,0.81946431]
[1693403190717,0.07196206,224.35,223.99,0.89156691]
[1693403190918,0.07196206,224.35,224.0,0.81946431]
[1693403191414,0.07196206,224.34,224.0,0.81946431]
[1693403193321,0.07196206,224.33,224.0,0.89156691]
[1693403193521,0.07196206,224.33,224.01,0.81946431]
[1693403194324,0.07196206,224.32,224.01,0.89156691]
[1693403194623,0.07196206,224.32,224.02,0.81946431]
[1693403194920,0.07196206,224.32,224.02,0.89156691]
[1693403195124,0.07196206,224.32,224.03,0.81946431]
[1693403198427,0.07196206,224.32,224.03,0.89156691]
[1693403198621,0.07196206,224.32,224.04,0.81946431]
[1693403199027,0.07196206,224.31,224.04,0.81946431]
[1693403199624,0.07196206,224.31,224.05,0.81946431]
[1693403199831,0.07196206,224.29,224.06,0.81946431]
[1693403200024,0.07196206,224.29,224.05,0.81946431]
[1693403200225,0.07196206,224.29,224.06,0.81946431]
[1693403200430,0.07196206,224.3,224.07,0.81946431]
[1693403200632,0.07196206,224.29,224.04,0.0721026]
[1693403200933,0.07196206,224.29,224.05,0.81949688]
[1693403203728,0.07196206,224.31,224.05,0.89159948]
[1693403204034,0.07196206,224.32,224.07,0.0721026]
[1693403204231,0.07196206,224.32,224.08,0.81949688]
[1693403204433,0.07196206,224.32,224.08,0.89159948]
[1693403204630,0.07196206,224.33,224.09,0.89159948]
[1693403204829,0.07196206,224.39,224.11,0.0721026]
[1693403205029,0.07196206,224.39,224.12,0.81949688]
[1693403205533,0.07196206,224.4,224.12,0.89159948]
[1693403205731,0.07196206,224.4,224.13,0.81949688]
[1693403205931,2.39873541,224.54,224.13,0.81949688]
[1693403205932,0.07196206,224.41,224.13,0.81949688]
[1693403206133,0.07196206,224.41,224.14,0.81949688]
[1693403206328,0.07196206,224.41,224.15,0.81949688]
[1693403206527,0.07196206,224.41,224.11,0.81949688]
[1693403206731,0.14392412,224.43,223.94,0.480684]
[1693403206732,0.07196206,224.4,224.12,0.81949688]
[1693403206931,0.07196206,224.4,224.09,0.0721026]
[1693403206932,0.07196206,224.4,224.13,0.81949688]
[1693403207133,0.07196206,224.4,224.1,0.81949688]
[1693403207327,0.07196206,224.4,224.11,0.81949688]
[1693403207534,0.07196206,224.4,224.12,0.81949688]
[1693403207728,0.07196206,224.41,224.1,0.81949688]
[1693403207932,0.07196206,224.41,224.11,0.81949688]
[1693403208133,0.07196206,224.41,224.09,0.81949688]
[1693403208333,0.07196206,224.41,224.1,0.81949688]
[1693403208532,0.07196206,224.41,224.11,0.81949688]
[1693403208729,0.07196206,224.42,224.12,0.81949688]
[1693403208928,0.07196206,224.42,224.08,0.81949688]
[1693403209136,0.07196206,224.42,224.09,0.81949688]
[1693403209435,0.07196206,224.42,224.1,0.81949688]
[1693403209628,0.07196206,224.42,224.11,0.81949688]
[1693403209832,0.07196206,224.42,224.12,0.81949688]
[1693403210033,0.07196206,224.42,224.13,0.81949688]
[1693403210333,0.07196206,224.42,224.14,0.81949688]
[1693403210535,0.07196206,224.42,224.15,0.81949688]
[1693403210730,0.07196206,224.42,224.07,0.0721026]
[1693403210936,0.07196206,224.43,224.08,0.81919681]
[1693403212030,0.07196206,224.43,224.09,0.81919681]
[1693403212229,0.07196206,224.43,224.1,0.81919681]
[1693403212429,0.07196206,224.43,224.11,0.81919681]
[1693403212735,0.07196206,224.43,224.12,0.81919681]
[1693403212932,0.07196206,224.43,224.13,0.81919681]
[1693403213140,0.07196206,224.43,224.14,0.81919681]
[1693403213332,0.07196206,224.44,224.06,0.89129941]